bitfinex/quotes_BTCUSD_20240613
["timestamp","ask_amount","ask_price","bid_price","bid_amount"]
[1718275827279,0.09524177,67617.0,67616.0,1.41743121]
[1718275827492,0.09524177,67617.0,67616.0,0.90749771]
[1718275828103,0.09524177,67617.0,67616.0,0.85755489]
[1718275828514,0.09524177,67617.0,67616.0,0.96718465]
[1718275828735,0.09524177,67617.0,67616.0,0.85755489]
[1718275828925,0.09524177,67617.0,67616.0,0.87532892]
[1718275830199,0.09524177,67617.0,67616.0,0.8753061]
[1718275830605,0.09524177,67617.0,67616.0,0.92521038]
[1718275830754,0.09495458,67617.0,67616.0,0.92521038]
[1718275830953,0.09495458,67617.0,67616.0,0.92615638]
[1718275831192,0.09581458,67617.0,67616.0,0.92615638]
[1718275831379,0.09581458,67617.0,67616.0,1.02615638]
[1718275831782,0.09581458,67617.0,67616.0,0.92615638]
[1718275833109,0.08726458,67617.0,67616.0,0.92615638]
[1718275834600,0.08726458,67617.0,67616.0,0.92615059]
[1718275835175,0.08726458,67617.0,67616.0,1.0179582]
[1718275835385,0.08726458,67617.0,67616.0,0.83697656]
[1718275835525,0.08726458,67617.0,67616.0,0.90837656]
[1718275835734,0.08726458,67617.0,67616.0,1.01796484]
[1718275836356,0.08726458,67617.0,67616.0,0.8953158]
[1718275836705,0.08726458,67617.0,67616.0,0.90837893]
[1718275837579,0.08726458,67617.0,67616.0,1.01797717]
[1718275837780,0.08726458,67617.0,67616.0,0.90837893]
[1718275838588,0.08726458,67617.0,67616.0,0.92599575]
[1718275839668,0.08726458,67617.0,67616.0,0.92608278]
[1718275840102,0.08726458,67617.0,67616.0,1.087724]
[1718275840305,0.08726458,67617.0,67616.0,0.92608278]
[1718275840503,0.08726458,67617.0,67616.0,1.0876888]
[1718275840830,0.08726458,67617.0,67616.0,1.1876888]
[1718275841033,0.08726458,67617.0,67616.0,1.02607787]
[1718275841668,0.08726458,67617.0,67616.0,1.5696576]
[1718275841669,0.01923064,67617.0,67616.0,1.5696576]
[1718275842220,0.01923064,67617.0,67616.0,1.6731826]
[1718275842436,0.01923064,67617.0,67616.0,1.5696576]
[1718275842865,0.01923064,67617.0,67616.0,1.56961044]
[1718275844793,0.01923064,67617.0,67616.0,1.54161044]
[1718275845170,0.01923064,67617.0,67616.0,1.55561044]
[1718275845373,0.01923064,67617.0,67616.0,1.54161044]
[1718275845897,0.01923064,67617.0,67616.0,1.55561044]
[1718275846275,0.01923064,67617.0,67616.0,1.56961044]
[1718275846844,0.01923064,67617.0,67616.0,1.55561044]
[1718275847246,0.01923064,67617.0,67616.0,1.5519945]
[1718275847452,0.01923064,67617.0,67616.0,1.55089796]
[1718275849178,0.01923064,67617.0,67616.0,1.84862166]
[1718275849937,0.01923064,67617.0,67616.0,1.8487588]
[1718275850144,0.30017851,67626.0,67625.0,0.17164437]
[1718275850359,0.30017851,67626.0,67625.0,0.70244276]
[1718275850773,0.31069401,67626.0,67625.0,0.70244276]
[1718275850996,0.00855,67627.0,67626.0,0.22198091]
[1718275851203,0.076,67637.0,67630.0,0.17198091]
[1718275851418,0.076,67637.0,67630.0,0.70244276]
[1718275852157,0.076,67637.0,67630.0,0.60244276]
[1718275852360,0.076,67637.0,67630.0,0.70244276]
[1718275852827,0.076,67637.0,67630.0,0.60244276]
[1718275853032,0.076,67637.0,67630.0,0.61644276]
[1718275853581,0.076,67637.0,67630.0,0.61636265]
[1718275853985,0.076,67637.0,67630.0,0.74801088]
[1718275854207,0.076,67637.0,67630.0,0.73401088]
[1718275854582,0.076,67637.0,67630.0,0.74801088]
[1718275854818,0.076,67637.0,67630.0,0.84801088]
[1718275855288,0.076,67637.0,67630.0,0.73036265]
[1718275856002,0.076,67637.0,67630.0,0.71636265]
[1718275856447,0.076,67637.0,67630.0,0.61636265]
[1718275856864,0.076,67637.0,67630.0,0.60236265]
[1718275857190,0.076,67637.0,67630.0,0.61636265]
[1718275857592,0.076,67637.0,67630.0,0.63036265]
[1718275857813,0.076,67637.0,67630.0,0.61636265]
[1718275858411,0.076,67637.0,67630.0,0.73036265]
[1718275858613,0.02235909,67631.0,67630.0,0.63036265]
[1718275859115,0.02235909,67631.0,67630.0,0.61122336]
[1718275859323,0.02235909,67631.0,67630.0,0.76194519]
[1718275859496,0.02235909,67631.0,67630.0,0.76194226]
[1718275860266,0.02235909,67631.0,67630.0,0.67144461]
[1718275860447,0.02235909,67631.0,67630.0,0.63032642]
[1718275861864,0.0134654,67631.0,67630.0,0.63032642]
[1718275864425,0.0134654,67631.0,67630.0,0.64807738]
[1718275864632,0.0134654,67631.0,67630.0,0.63807738]
[1718275864837,0.0134654,67631.0,67630.0,0.64807738]
[1718275865047,0.0134654,67631.0,67630.0,0.63813096]
[1718275865222,0.0134654,67631.0,67630.0,0.57673096]
[1718275865426,0.0134654,67631.0,67630.0,0.64813096]
[1718275865979,0.0134654,67631.0,67630.0,0.64812771]
[1718275866410,0.0134654,67631.0,67630.0,0.67509478]
[1718275867257,0.0134654,67631.0,67630.0,0.67519031]
[1718275871825,0.00668909,67631.0,67630.0,0.77519031]
[1718275872028,0.29999999,67654.0,67644.0,0.06]
[1718275872029,0.27084498,67645.0,67644.0,0.06]
[1718275872163,0.29999999,67654.0,67644.0,0.06]
[1718275872164,0.29999999,67654.0,67652.0,0.06198091]
[1718275872364,0.29999999,67654.0,67653.0,0.46941364]
[1718275872590,0.29999999,67654.0,67653.0,0.712087]
[1718275873015,0.29999999,67654.0,67653.0,0.60241364]
[1718275873216,0.29999999,67654.0,67653.0,0.71193747]
[1718275873415,0.29999999,67654.0,67653.0,0.7119342]
[1718275873897,0.29999999,67654.0,67653.0,0.75759956]
[1718275874304,0.29999999,67654.0,67653.0,0.66208856]
[1718275874532,0.29999999,67654.0,67653.0,0.71192673]
[1718275874749,0.29999999,67654.0,67653.0,0.64807153]
[1718275875179,0.29999999,67654.0,67653.0,0.69800764]
[1718275875416,0.29999999,67654.0,67653.0,0.60250411]
[1718275875636,0.29999999,67654.0,67653.0,0.58850411]
[1718275876281,0.29999999,67654.0,67653.0,0.67604263]
[1718275876958,0.29999999,67654.0,67653.0,0.68004263]
[1718275877176,0.29999999,67654.0,67653.0,0.42870084]
[1718275877459,0.29999999,67654.0,67653.0,0.67212028]
[1718275877633,0.38777779,67654.0,67653.0,0.67212028]
[1718275877837,0.38019999,67654.0,67653.0,0.67212028]
[1718275878037,0.38777779,67654.0,67653.0,0.67212028]
[1718275878207,0.38777779,67654.0,67653.0,0.68212028]
[1718275878376,0.38777779,67654.0,67653.0,0.68211094]
[1718275878574,0.30757779,67654.0,67653.0,0.68211094]
[1718275879459,0.30757779,67654.0,67653.0,0.68211074]
[1718275879681,0.30757779,67654.0,67653.0,0.61648021]
[1718275879893,0.30757779,67654.0,67653.0,0.60248021]
[1718275880315,0.30757779,67654.0,67653.0,0.61648021]
[1718275880753,0.30757779,67654.0,67653.0,0.60248021]
[1718275881043,0.29999999,67654.0,67653.0,0.60248021]
[1718275881275,0.29999999,67654.0,67653.0,0.66020583]
[1718275881276,0.30775349,67654.0,67653.0,0.66020583]
[1718275881716,0.30775349,67654.0,67653.0,0.64620583]
[1718275882117,0.30775349,67654.0,67653.0,0.66020583]
[1718275882261,0.30775349,67654.0,67653.0,0.66020599]
[1718275882690,0.37075349,67654.0,67653.0,0.58880599]
[1718275882906,0.37075349,67654.0,67653.0,0.61648021]
[1718275883106,0.37075349,67654.0,67653.0,0.63406257]
[1718275883660,0.37075349,67654.0,67653.0,0.67778539]
[1718275883810,0.37075349,67654.0,67653.0,0.63406257]
[1718275884004,0.32025349,67654.0,67653.0,0.63406257]
[1718275884206,0.32025349,67654.0,67653.0,0.67778468]
[1718275884452,0.25725349,67654.0,67653.0,0.67778468]
[1718275884876,0.25725349,67654.0,67653.0,0.69556118]
[1718275885081,0.25725349,67654.0,67653.0,0.78302221]
[1718275885288,0.25725349,67654.0,67653.0,0.88302221]
[1718275885504,0.24949999,67654.0,67653.0,0.78302221]
[1718275886058,0.24693085,67654.0,67653.0,0.78302221]
[1718275886489,0.25468482,67654.0,67653.0,0.76543985]
[1718275886690,0.25468482,67654.0,67653.0,0.75143985]
[1718275887095,0.25468482,67654.0,67653.0,0.75146844]
[1718275887496,0.25468482,67654.0,67653.0,0.76546844]
[1718275887750,0.24693085,67654.0,67653.0,0.76546844]
[1718275887923,0.24693085,67654.0,67653.0,0.75146844]
[1718275888127,0.25474461,67654.0,67653.0,0.66400741]
[1718275888277,0.25474461,67654.0,67653.0,0.75142073]
[1718275888479,0.25474461,67654.0,67653.0,0.67800741]
[1718275888687,0.25474461,67654.0,67653.0,0.95520406]
[1718275888956,0.24693085,67654.0,67653.0,0.85520406]
[1718275889720,0.24693085,67654.0,67653.0,0.84120406]
[1718275890140,0.25474508,67654.0,67653.0,0.85520406]
[1718275890511,0.25474508,67654.0,67653.0,0.84120406]
[1718275890907,0.25474508,67654.0,67653.0,0.75545403]
[1718275891110,0.25474508,67654.0,67653.0,0.76945403]
[1718275891345,0.25474508,67654.0,67653.0,0.75545403]
[1718275891518,0.25474508,67654.0,67653.0,0.76945403]
[1718275891746,0.25474508,67654.0,67653.0,0.78345403]
[1718275891934,0.25474508,67654.0,67653.0,0.76945403]
[1718275892273,0.25474508,67654.0,67653.0,0.78346758]
[1718275892422,0.25474508,67654.0,67653.0,0.65056758]
[1718275892647,0.25474508,67654.0,67653.0,0.72196758]
[1718275892825,0.23217038,67654.0,67653.0,0.72196758]
[1718275892992,0.23217038,67654.0,67653.0,1.00263658]
[1718275893195,0.23217038,67654.0,67653.0,0.97724477]
[1718275893618,0.23217038,67654.0,67653.0,0.96390555]
[1718275893823,0.23217038,67654.0,67653.0,1.08648216]
[1718275894045,0.23217038,67654.0,67653.0,1.05848216]
[1718275894237,0.23217038,67654.0,67653.0,1.07248216]
[1718275894438,0.23217038,67654.0,67653.0,1.08648216]
[1718275894643,0.23217038,67654.0,67653.0,1.07248216]
[1718275895008,0.23217038,67654.0,67653.0,1.05848216]
[1718275895217,0.23217038,67654.0,67653.0,0.79944634]
[1718275895419,0.23217038,67654.0,67653.0,1.13619306]
[1718275895827,0.23217038,67654.0,67653.0,1.12219306]
[1718275895992,0.23217038,67654.0,67653.0,0.91872406]
[1718275896296,0.23217038,67654.0,67653.0,0.86892623]
[1718275896574,0.23217038,67654.0,67653.0,0.81379562]
[1718275896793,0.23217038,67654.0,67653.0,0.67390286]
[1718275896956,0.23217038,67654.0,67653.0,0.62046746]
[1718275897162,0.23217038,67654.0,67653.0,0.63446746]
[1718275897524,0.23217038,67654.0,67653.0,0.70002905]
[1718275897731,0.23217038,67654.0,67653.0,0.68602905]
[1718275898121,0.23217038,67654.0,67653.0,0.70002905]
[1718275898651,0.23217038,67654.0,67653.0,0.5774526]
[1718275898864,0.23217038,67654.0,67653.0,0.63447338]
[1718275899090,0.23217038,67654.0,67653.0,0.70003501]
[1718275899447,0.23217038,67654.0,67653.0,0.63447338]
[1718275899665,0.23217038,67654.0,67653.0,0.7000356]
[1718275900268,0.23217038,67654.0,67653.0,0.63447338]
[1718275901150,0.23217038,67654.0,67653.0,0.63444925]
[1718275901299,0.23217038,67654.0,67653.0,0.77166568]
[1718275902348,0.23217038,67654.0,67653.0,0.93779185]
[1718275902501,0.23217038,67654.0,67653.0,0.93779482]
[1718275902915,0.23217038,67654.0,67653.0,0.82855002]
[1718275903527,0.23217038,67654.0,67653.0,0.91594551]
[1718275903753,0.23217038,67654.0,67653.0,0.6661848]
[1718275904581,0.23217038,67654.0,67653.0,0.75358029]
[1718275904915,0.23217038,67654.0,67653.0,0.77139058]
[1718275905127,0.23217038,67654.0,67653.0,0.68399509]
[1718275905274,0.23217038,67654.0,67653.0,0.87139058]
[1718275905478,0.23217038,67654.0,67653.0,0.85960104]
[1718275905678,0.22957871,67654.0,67653.0,1.01465647]
[1718275906084,0.22957871,67654.0,67653.0,1.0896262]
[1718275906967,0.22957871,67654.0,67653.0,0.9896262]
[1718275907368,0.22957871,67654.0,67653.0,0.8463262]
[1718275907973,0.22957871,67654.0,67653.0,0.7713877]
[1718275908391,0.22957871,67654.0,67653.0,0.78396098]
[1718275908601,0.22957871,67654.0,67653.0,1.0555635]
[1718275908921,0.22957871,67654.0,67653.0,0.80367243]
[1718275909142,0.22957871,67654.0,67653.0,1.08790909]
[1718275909348,0.22957871,67654.0,67653.0,1.07390909]
[1718275909550,0.22957871,67654.0,67653.0,1.05990909]
[1718275909893,0.22957871,67654.0,67653.0,0.97390909]
[1718275910098,0.22957871,67654.0,67653.0,0.67567243]
[1718275910302,0.22957871,67654.0,67653.0,0.95912059]
[1718275910868,0.22957871,67654.0,67653.0,0.97312059]
[1718275911483,0.22957871,67654.0,67653.0,0.95912059]
[1718275911912,0.22957871,67654.0,67653.0,0.97312059]
[1718275912324,0.1956987,67654.0,67653.0,0.97312059]
[1718275912703,0.1956987,67654.0,67653.0,0.84477462]
[1718275912906,0.1956987,67654.0,67653.0,0.83077462]
[1718275913314,0.1956987,67654.0,67653.0,0.84477462]
[1718275913713,0.1956987,67654.0,67653.0,0.77196105]
[1718275914116,0.20361511,67654.0,67653.0,0.8269781]
[1718275914550,0.20361511,67654.0,67653.0,0.9582448]
[1718275915274,0.1956987,67654.0,67653.0,0.9582448]
[1718275915501,0.1956987,67654.0,67653.0,0.8269781]
[1718275915699,0.1956987,67654.0,67653.0,0.84478754]
[1718275916022,0.1956987,67654.0,67653.0,0.77338754]
[1718275916228,0.1956987,67654.0,67653.0,0.84478754]
[1718275916792,0.15155991,67654.0,67653.0,0.94478754]
[1718275916998,0.15155991,67654.0,67653.0,1.00678754]
[1718275918231,0.14755991,67654.0,67653.0,1.00678754]
[1718275918423,0.14755991,67654.0,67653.0,0.66832233]
[1718275918629,0.14755991,67654.0,67653.0,1.0073051]
[1718275920183,0.14755991,67654.0,67653.0,0.9073051]
[1718275920399,0.14755991,67654.0,67653.0,0.8933051]
[1718275920807,0.14755991,67654.0,67653.0,0.84509268]
[1718275921004,0.26663991,67654.0,67653.0,0.84509268]
[1718275921360,0.26863991,67654.0,67653.0,0.82109268]
[1718275921670,0.27655885,67654.0,67653.0,0.83109268]
[1718275921911,0.27655885,67654.0,67653.0,0.84509268]
[1718275922080,0.26863991,67654.0,67653.0,0.68391856]
[1718275922694,0.12443991,67654.0,67653.0,0.96993156]
[1718275922872,0.12443991,67654.0,67653.0,0.92211856]
[1718275923037,0.12443991,67654.0,67653.0,0.86709526]
[1718275923254,0.12443991,67654.0,67653.0,1.08325601]
[1718275924443,0.12443991,67654.0,67653.0,0.95686938]
[1718275924654,0.12443991,67654.0,67653.0,1.08323498]
[1718275925234,0.12443991,67654.0,67653.0,0.98323498]
[1718275925435,0.12443991,67654.0,67653.0,1.08323498]
[1718275926400,0.10965278,67654.0,67653.0,1.06542554]
[1718275927996,0.11051278,67654.0,67653.0,1.06542554]
[1718275929279,0.11051278,67654.0,67653.0,1.06210849]
[1718275929843,0.05852278,67654.0,67653.0,1.06210849]
[1718275930024,0.05500466,67654.0,67653.0,1.06210849]
[1718275930276,0.05500466,67654.0,67653.0,0.99065043]
[1718275930505,0.05500466,67654.0,67653.0,1.06205043]
[1718275930922,0.05500466,67654.0,67653.0,1.07964317]
[1718275931122,0.01979466,67654.0,67653.0,1.07964317]
[1718275931252,0.00188466,67654.0,67653.0,1.17964317]
[1718275931453,0.00856,67660.0,67659.0,0.42198091]
[1718275931680,0.29605907,67663.0,67662.0,0.07198091]
[1718275931889,0.29250907,67663.0,67662.0,0.7649566]
[1718275932223,0.29250907,67663.0,67662.0,0.94583909]
[1718275932224,0.30044253,67663.0,67662.0,0.94583909]
[1718275932432,0.30044253,67663.0,67662.0,0.84583909]
[1718275932745,0.30044253,67663.0,67662.0,0.94583909]
[1718275932965,0.29250907,67663.0,67662.0,0.85983909]
[1718275933202,0.29250907,67663.0,67662.0,0.95983909]
[1718275933410,0.29250907,67663.0,67662.0,0.78795057]
[1718275933614,0.29250907,67663.0,67662.0,0.98140893]
[1718275933819,0.29250907,67663.0,67662.0,1.30159745]
[1718275934021,0.29250907,67663.0,67662.0,1.28703794]
[1718275934250,0.29250907,67663.0,67662.0,1.03924494]
[1718275934530,0.29250907,67663.0,67662.0,1.13924494]
[1718275934862,0.29250907,67663.0,67662.0,1.31665794]
[1718275935055,0.26420907,67663.0,67662.0,1.36665794]
[1718275935264,0.26195721,67663.0,67662.0,1.38065794]
[1718275935464,0.26195721,67663.0,67662.0,1.39465794]
[1718275935910,0.26195721,67663.0,67662.0,1.36665794]
[1718275936350,0.29999999,67692.0,67672.0,0.36975191]
[1718275936351,0.0648,67684.0,67672.0,0.36975191]
[1718275936577,0.28112505,67673.0,67672.0,0.95552674]
[1718275936786,0.28112505,67673.0,67672.0,0.84791701]
[1718275936992,0.28112505,67673.0,67672.0,0.68791625]
[1718275937200,0.28112505,67673.0,67672.0,0.88701701]
[1718275937444,0.28112505,67673.0,67672.0,0.78701701]
[1718275937867,0.28112505,67673.0,67672.0,0.70561701]
[1718275938076,0.28112505,67673.0,67672.0,0.74135165]
[1718275938725,0.28112505,67673.0,67672.0,0.88669809]
[1718275938932,0.28112505,67673.0,67672.0,0.74135165]
[1718275939138,0.28112505,67673.0,67672.0,0.68791625]
[1718275939370,0.28112505,67673.0,67672.0,0.83326269]
[1718275939585,0.28905851,67673.0,67672.0,0.84726269]
[1718275940004,0.28905851,67673.0,67672.0,0.70191625]
[1718275940426,0.28905851,67673.0,67672.0,0.59336687]
[1718275940637,0.28905851,67673.0,67672.0,0.64451364]
[1718275940876,0.28905851,67673.0,67672.0,0.66591364]
[1718275941089,0.28905851,67673.0,67672.0,0.71591364]
[1718275941307,0.28905851,67673.0,67672.0,0.70591364]
[1718275941530,0.28905851,67673.0,67672.0,0.61494904]
[1718275941531,0.37015851,67673.0,67672.0,0.61494904]
[1718275941747,0.37015851,67673.0,67672.0,0.63291364]
[1718275941962,0.37015851,67673.0,67672.0,0.67069639]
[1718275942202,0.43355851,67673.0,67672.0,0.41136505]
[1718275942457,0.43355851,67673.0,67672.0,0.20540075]
[1718275942925,0.43355851,67673.0,67672.0,0.20542368]
[1718275943139,0.43355851,67673.0,67672.0,0.25306805]
[1718275943352,0.43355851,67673.0,67672.0,0.23906805]
[1718275943580,0.43355851,67673.0,67672.0,0.25306805]
[1718275943795,0.43355851,67673.0,67672.0,0.36072894]
[1718275944040,0.43355851,67673.0,67672.0,0.483306]
[1718275944482,0.43355851,67673.0,67672.0,0.52712375]
[1718275944711,0.43355851,67673.0,67672.0,0.483306]
[1718275944933,0.43355851,67673.0,67672.0,0.51311184]
[1718275945176,0.43355851,67673.0,67672.0,0.469306]
[1718275945398,0.43355851,67673.0,67672.0,0.54901476]
[1718275945599,0.28905851,67673.0,67672.0,0.54501476]
[1718275945813,0.17443652,67673.0,67672.0,0.71763231]
[1718275946051,0.15064227,67673.0,67672.0,0.82851231]
[1718275946900,0.15064227,67673.0,67672.0,0.81451231]
[1718275947138,0.15064227,67673.0,67672.0,0.84251231]
[1718275947354,0.15064227,67673.0,67672.0,0.88817767]
[1718275947788,0.03356,67676.0,67675.0,0.37198091]
[1718275948029,0.29529837,67682.0,67681.0,0.06198091]
[1718275948231,0.29529837,67682.0,67681.0,0.52813231]
[1718275948454,0.29529837,67682.0,67681.0,0.60258227]
[1718275948455,0.36099837,67682.0,67681.0,0.60258227]
[1718275948673,0.36099837,67682.0,67681.0,0.66582708]
[1718275948925,0.43639837,67682.0,67681.0,0.40489593]
[1718275949154,0.43639837,67682.0,67681.0,0.33924953]
[1718275950092,0.29529837,67682.0,67681.0,0.744506]
[1718275950314,0.29529837,67682.0,67681.0,0.781506]
[1718275950536,0.29529837,67682.0,67681.0,0.84530574]
[1718275950737,0.26329238,67682.0,67681.0,1.09913674]
[1718275950958,0.25591238,67682.0,67681.0,1.12840574]
[1718275951163,0.25591238,67682.0,67681.0,1.43433674]
[1718275951409,0.23991238,67682.0,67681.0,1.4940021]
[1718275951613,0.23991238,67682.0,67681.0,1.47585449]
[1718275952054,0.23991238,67682.0,67681.0,1.48985449]
[1718275952278,0.23991238,67682.0,67681.0,1.47585449]
[1718275952938,0.23991238,67682.0,67681.0,1.3641144]
[1718275953144,0.23991238,67682.0,67681.0,1.32810349]
[1718275953314,0.23991238,67682.0,67681.0,1.34210349]
[1718275953521,0.23991238,67682.0,67681.0,1.31410349]
[1718275954028,0.23991238,67682.0,67681.0,1.32565604]
[1718275954435,0.23991238,67682.0,67681.0,1.34123604]
[1718275954635,0.23991238,67682.0,67681.0,1.49029279]
[1718275954836,0.23991238,67682.0,67681.0,1.4613164]
[1718275955039,0.23991238,67682.0,67681.0,1.62037843]
[1718275955417,0.23991238,67682.0,67681.0,1.60637843]
[1718275955639,0.23991238,67682.0,67681.0,1.4753164]
[1718275955817,0.23991238,67682.0,67681.0,1.4893164]
[1718275956218,0.23991238,67682.0,67681.0,1.52098176]
[1718275956868,0.22363238,67682.0,67681.0,1.52098176]
[1718275957019,0.22363238,67682.0,67681.0,1.53498176]
[1718275957445,0.22363238,67682.0,67681.0,1.50698176]
[1718275957898,0.20682837,67692.0,67691.0,0.70050676]
[1718275958033,0.20682837,67692.0,67691.0,1.22701025]
[1718275958238,0.20682837,67692.0,67691.0,1.32798709]
[1718275958487,0.20682837,67692.0,67691.0,1.29840709]
[1718275958836,0.20682837,67692.0,67691.0,0.76315323]
[1718275959012,0.20682837,67692.0,67691.0,1.0995684]
[1718275959285,0.20682837,67692.0,67691.0,1.06775564]
[1718275959499,0.20682837,67692.0,67691.0,0.99617753]
[1718275959705,0.20682837,67692.0,67691.0,1.00617753]
[1718275959911,0.20682837,67692.0,67691.0,1.02417753]
[1718275960128,0.20682837,67692.0,67691.0,1.01236803]
[1718275960346,0.20682837,67692.0,67691.0,0.98436803]
[1718275960559,0.20682837,67692.0,67691.0,0.99836803]
[1718275960771,0.20682837,67692.0,67691.0,1.01236803]
[1718275960983,0.20682837,67692.0,67691.0,1.01017753]
[1718275961192,0.20682837,67692.0,67691.0,1.06925753]
[1718275961400,0.20682837,67692.0,67691.0,1.00381916]
[1718275961610,0.20682837,67692.0,67691.0,1.05743793]
[1718275962637,0.20682837,67692.0,67691.0,1.07143793]
[1718275962843,0.20682837,67692.0,67691.0,1.05743793]
[1718275963692,0.20682837,67692.0,67691.0,1.07143793]
[1718275964189,0.20682837,67692.0,67691.0,1.02781916]
[1718275964397,0.20682837,67692.0,67691.0,1.07143195]
[1718275964609,0.20682837,67692.0,67691.0,1.02781916]
[1718275965062,0.20682837,67692.0,67691.0,1.06142834]
[1718275965301,0.20682837,67692.0,67691.0,1.07142834]
[1718275965515,0.20682837,67692.0,67691.0,1.02781916]
[1718275967182,0.20682837,67692.0,67691.0,0.85023323]
[1718275967378,0.20682837,67692.0,67691.0,1.02792834]
[1718275967595,0.20682837,67692.0,67691.0,1.01792834]
[1718275967796,0.20682837,67692.0,67691.0,0.79843641]
[1718275967971,0.20682837,67692.0,67691.0,0.92643641]
[1718275968141,0.20682837,67692.0,67691.0,0.97643641]
[1718275968348,0.20682837,67692.0,67691.0,0.97644384]
[1718275968763,0.20682837,67692.0,67691.0,0.89844384]
[1718275968958,0.20682837,67692.0,67691.0,0.6981073]
[1718275969159,0.20682837,67692.0,67691.0,0.76210876]
[1718275969476,0.20682837,67692.0,67691.0,0.79400436]
[1718275969923,0.20682837,67692.0,67691.0,0.7764453]
[1718275970097,0.20682837,67692.0,67691.0,0.7484453]
[1718275970506,0.20682837,67692.0,67691.0,3.71082057]
[1718275970712,0.20682837,67692.0,67691.0,3.79400048]
[1718275970909,0.20682837,67692.0,67691.0,3.79400227]
[1718275971725,0.20682837,67692.0,67691.0,3.77644737]
[1718275972508,0.20682837,67692.0,67691.0,3.78644737]
[1718275972749,0.20682837,67692.0,67691.0,3.78643417]
[1718275972918,0.20682837,67692.0,67691.0,4.19666417]
[1718275973126,0.19019577,67692.0,67691.0,4.03643477]
[1718275973320,0.16207351,67692.0,67691.0,4.04631159]
[1718275974144,0.16207351,67692.0,67691.0,3.96245224]
[1718275974369,0.16207351,67692.0,67691.0,4.04634698]
[1718275975036,0.16207351,67692.0,67691.0,4.03234698]
[1718275975239,0.16207351,67692.0,67691.0,4.24804698]
[1718275975444,0.13007351,67692.0,67691.0,4.44050011]
[1718275975647,0.13007351,67692.0,67691.0,4.42650011]
[1718275976047,0.13007351,67692.0,67691.0,4.4920381]
[1718275976328,0.13007351,67692.0,67691.0,4.39473498]
[1718275976537,0.13007351,67692.0,67691.0,4.41649483]
[1718275976738,0.13007351,67692.0,67691.0,4.43049483]
[1718275976866,0.13007351,67692.0,67691.0,4.45449483]
[1718275977207,0.13007351,67692.0,67691.0,4.44449483]
[1718275977430,0.12957351,67692.0,67691.0,4.56360874]
[1718275977708,0.12957351,67692.0,67691.0,4.45449483]
[1718275978572,0.12957351,67692.0,67691.0,4.23879483]
[1718275978725,0.12957351,67692.0,67691.0,4.09609483]
[1718275978905,0.12957351,67692.0,67691.0,4.18339944]
[1718275979108,0.12957351,67692.0,67691.0,4.21581137]
[1718275979722,0.12957351,67692.0,67691.0,4.22581137]
[1718275980140,0.12957351,67692.0,67691.0,4.13850676]
[1718275980342,0.12957351,67692.0,67691.0,4.07850676]
[1718275980547,0.12957351,67692.0,67691.0,4.24761333]
[1718275980848,0.12957351,67692.0,67691.0,4.15586117]
[1718275982961,0.12957351,67692.0,67691.0,4.15589676]
[1718275984600,0.12957351,67692.0,67691.0,4.10589676]
[1718275984797,0.12957351,67692.0,67691.0,4.15589676]
[1718275985171,0.05429683,67692.0,67691.0,4.88062676]
[1718275985382,0.03090359,67692.0,67691.0,4.70262676]
[1718275985581,0.0134654,67698.0,67694.0,0.5712563]
[1718275985782,0.0134654,67698.0,67694.0,1.34003783]
[1718275986166,0.0134654,67698.0,67694.0,1.209056]
[1718275986358,0.0134654,67698.0,67694.0,1.238636]
[1718275986786,0.0134654,67698.0,67694.0,1.59327308]
[1718275986991,0.0134654,67698.0,67694.0,1.47630136]
[1718275987170,0.00013834,67695.0,67694.0,1.47630136]
[1718275988070,0.00013834,67695.0,67694.0,1.49030136]
[1718275988724,0.00107982,67699.0,67698.0,0.8319473]
[1718275988987,0.00107982,67699.0,67698.0,1.09926723]
[1718275989232,0.23829981,67701.0,67700.0,0.5712433]
[1718275989435,0.23829981,67701.0,67700.0,1.19696781]
[1718275989667,0.23829981,67701.0,67700.0,1.244043]
[1718275990784,0.23829981,67701.0,67700.0,1.2440545]
[1718275991001,0.27657999,67710.0,67709.0,0.5144333]
[1718275991227,0.21760086,67710.0,67709.0,1.1872445]
[1718275991452,0.00856,67722.0,67709.0,1.1872445]
[1718275991453,0.00856,67722.0,67719.0,0.1178333]
[1718275991660,0.28007736,67720.0,67719.0,0.89982093]
[1718275991881,0.28007736,67720.0,67719.0,0.7906445]
[1718275992933,0.28007736,67720.0,67719.0,4.1875935]
[1718275993145,0.28007736,67720.0,67719.0,4.2875935]
[1718275993349,0.28007736,67720.0,67719.0,4.1259245]
[1718275993763,0.28007736,67720.0,67719.0,4.1399245]
[1718275993977,0.28007736,67720.0,67719.0,4.12596663]
[1718275994428,0.28007736,67720.0,67719.0,4.28763563]
[1718275994826,0.28007736,67720.0,67719.0,4.03996663]
[1718275995062,0.28007736,67720.0,67719.0,4.12596663]
[1718275995234,0.28007736,67720.0,67719.0,4.13996663]
[1718275995487,0.28007736,67720.0,67719.0,3.82524655]
[1718275995659,0.28007736,67720.0,67719.0,3.81124655]
[1718275995872,0.28007736,67720.0,67719.0,3.87734655]
[1718275996039,0.28007736,67720.0,67719.0,4.00030542]
[1718275996239,0.28007736,67720.0,67719.0,3.89134655]
[1718275996438,0.26407736,67720.0,67719.0,3.83724655]
[1718275996673,0.26407736,67720.0,67719.0,3.91919514]
[1718275996869,0.26407736,67720.0,67719.0,3.87165375]
[1718275997299,0.26407736,67720.0,67719.0,3.7704867]
[1718275997511,0.10530145,67720.0,67719.0,4.2651557]
[1718275997708,0.24673199,67729.0,67728.0,0.3078333]
[1718275997917,0.2411759,67729.0,67728.0,0.9409067]
[1718275998128,0.2411759,67729.0,67728.0,1.02805382]
[1718275998301,0.2411759,67729.0,67728.0,1.00622141]
[1718275999166,0.2411759,67729.0,67728.0,0.98444152]
[1718275999379,0.2411759,67729.0,67728.0,0.99843376]
[1718275999793,0.2411759,67729.0,67728.0,0.93246068]
[1718275999995,0.2411759,67729.0,67728.0,1.12019892]
[1718276000190,0.2411759,67729.0,67728.0,0.95489841]
[1718276000410,0.2411759,67729.0,67728.0,0.95889841]
[1718276000606,0.2411759,67729.0,67728.0,0.98621982]
[1718276000825,0.2411759,67729.0,67728.0,0.9862166]
[1718276002429,0.2411759,67729.0,67728.0,1.1452636]
[1718276002562,0.2411759,67729.0,67728.0,1.0452636]
[1718276003820,0.2411759,67729.0,67728.0,1.1452636]
[1718276005059,0.2411759,67729.0,67728.0,1.1929126]
[1718276005278,0.2411759,67729.0,67728.0,1.17559119]
[1718276005464,0.2411759,67729.0,67728.0,1.27559119]
[1718276005827,0.2411759,67729.0,67728.0,1.17559119]
[1718276006034,0.2411759,67729.0,67728.0,1.32559119]
[1718276006292,0.2411759,67729.0,67728.0,1.22559119]
[1718276006480,0.2411759,67729.0,67728.0,4.22559119]
[1718276006687,0.2411759,67729.0,67728.0,4.49526211]
[1718276007682,0.2411759,67729.0,67728.0,4.39526211]
[1718276008631,0.2411759,67729.0,67728.0,4.33995466]
[1718276008835,0.2406759,67729.0,67728.0,4.39534249]
[1718276009628,0.2406759,67729.0,67728.0,4.41276902]
[1718276009835,0.2406759,67729.0,67728.0,4.41274525]
[1718276010835,0.2406759,67729.0,67728.0,4.41270936]